Cogmind - Beta 11.1 @@@ ROGUE MODE // 2022.05.26 @ 12:56:13 Player: ChromeKnight Result: Destroyed by G-47 Trooper with Particle Gun Performance ------------- Evolutions (2) 1000 Regions Visited (5) 1000 Robots Destroyed (63) 315 Value Destroyed (1506) 1506 Prototype IDs (0) 0 Alien Tech Used (0) 0 Bonus (40) 40 TOTAL SCORE: 3861 Bonus ------- High Alert Combat Kills 40 Cogmind --------- Core Integrity 0/550 Matter 268/300 Energy 100/100 System Corruption 0% Temperature Cool (9) Movement Walking (260) Ox2 Location -8/Materials Parts ------- > --- POWER (1) -------- (None) > --- PROPULSION (2) --- Aluminum Leg > --- UTILITY (6) ------ Large Storage Unit Improved Signal Interpreter Power Shielding Improved Utility Shielding > --- WEAPON (2) ------- Mining Claw > --- INVENTORY (15) --- Medium Storage Unit Advanced Visual Processing Unit Improved Sensor Array Improved Signal Interpreter Microactuators Microactuators Microactuators Improved Shield Generator Improved Shield Generator Grenade Launcher Mining Claw Peak State ------------ > --- POWER ------------ Micro Nuclear Core > --- PROPULSION ------- Aluminum Leg Titanium Leg > --- UTILITY ---------- Improved Heat Sink Large Storage Unit Improved Signal Interpreter Improved Utility Shielding Hardened Light Armor Plating Hardened Light Armor Plating > --- WEAPON ----------- Mining Claw Mining Claw > --- INVENTORY -------- Light Angular Momentum Engine Aluminum Leg Aluminum Leg Aluminum Leg Aluminum Leg Heat Sink Improved Heat Sink Medium Storage Unit Advanced Visual Processing Unit Improved Sensor Array Improved Signal Interpreter Power Shielding Hardlight Generator Grenade Launcher Mining Claw [Rating: 26] Favorites ----------- Power Light Nuclear Core Engine Ion Engine Power Core Light Nuclear Core Propulsion Aluminum Leg Treads Light Treads Leg Aluminum Leg Utility Large Storage Unit Device Weight Redist. System Storage Large Storage Unit Processor Improved Signal Interpreter Protection Hardened Light Armor Plating Weapon Mining Claw Energy Gun Small Laser Ballistic Gun Light Assault Rifle Impact Weapon Heavy Mace Slashing Weapon Mining Claw Build | -11 -10 -10 -10 -9 -8 ------- Run | Scr Mat Min Exi Min Mat Slots Evolved 4 | . . . . . 4 Power . | . . . . . . Propulsion . | . . . . . . Utility 4 | . . . . . 4 Weapon . | . . . . . . Parts Attached 55 | 7 10 11 . . 27 Power 10 | 1 1 2 . . 6 Engine 7 | 1 1 1 . . 4 Core 3 | . . 1 . . 2 Reactor . | . . . . . . Propulsion 18 | 2 2 3 . . 11 Treads 3 | 2 1 . . . . Leg 15 | . 1 3 . . 11 Wheel . | . . . . . . Hover . | . . . . . . Flight . | . . . . . . Utility 13 | 1 3 2 . . 7 Device 4 | 1 1 1 . . 1 Storage 2 | . 2 . . . . Processor 1 | . . . . . 1 Hackware . | . . . . . . Protection 6 | . . 1 . . 5 Artifact . | . . . . . . Weapon 14 | 3 4 4 . . 3 Energy Gun 4 | 3 1 . . . . Energy Cannon . | . . . . . . Ballistic Gun 5 | . 3 2 . . . Ballistic Cannon . | . . . . . . Launcher . | . . . . . . Special Weapon . | . . . . . . Impact Weapon 1 | . . 1 . . . Slashing Weapon 4 | . . 1 . . 3 Piercing Weapon . | . . . . . . Special Melee Weapon . | . . . . . . Unidentified Prototypes . | . . . . . . Parts Lost 16 | . 1 . . . 15 Power 3 | . . . . . 3 Propulsion 5 | . 1 . . . 4 Utility 4 | . . . . . 4 Weapon 4 | . . . . . 4 Highest Loss Streak 6 | . 1 . . . 6 To Critical Strikes . | . . . . . . Average Slot Usage (%) 92 | . 92 99 100 100 86 Engine 5 | . 14 2 . . 7 Core 5 | . . 11 14 14 1 Treads 6 | . 23 11 . . . Leg 17 | . 3 16 28 28 17 Device 10 | . 14 10 14 14 8 Storage 11 | . 10 14 14 14 9 Processor 4 | . . . . . 9 Protection 7 | . . 3 . . 15 Energy Gun 1 | . 10 . . . . Ballistic Gun 7 | . 14 23 . . . Impact Weapon 3 | . . 2 14 14 1 Slashing Weapon 10 | . . 2 14 14 15 Naked Turns . | . . . . . . Heaviest Build 46 | 7 29 30 30 30 46 Greatest Support 40 | 40 40 31 31 31 31 Greatest Overweight (x) 2 | . 1 2 . . 2 Average Overweight (x) . | . . . . . 1 Largest Inventory Capacity 15 | 5 15 15 15 15 15 Average Capacity 14 | 5 10 15 15 15 15 Most Carried 15 | 3 15 15 15 15 15 Average Carried 13 | 1 9 14 15 15 14 Final Capacity 15 | 5 15 15 15 15 15 Final Carried 15 | 3 15 15 15 15 11 Class Distribution -------------------- 65% | Scavenger-Mutant 34% | Mutant Dominant Class ---------------- Mutant | -10/Materials Scavenger-Mutant | -10/Mines Scavenger-Mutant | -10/Exiles Scavenger-Mutant | -9/Mines Mutant | -8/Materials Resources | -11 -10 -10 -10 -9 -8 ----------- Run | Scr Mat Min Exi Min Mat Matter Collected 768 | 217 182 184 . . 185 Remotely . | . . . . . . Salvage Created 2421 | 38 411 231 . 94 1647 Parts 106 | 6 17 15 . 2 66 Haulers Intercepted 4 | . 2 . . . 2 Recyclers Shooed 4 | . . . . . 4 Parts Field Recycled . | . . . . . . Retrieved Matter . | . . . . . . Parts Self-Destructed . | . . . . . . Prevented . | . . . . . . Kills | -11 -10 -10 -10 -9 -8 ------- Run | Scr Mat Min Exi Min Mat Combat Hostiles Destroyed 45 | . 9 7 . 2 27 Melee 24 | . . . . 1 23 Guns 16 | . 9 7 . . . Classes Destroyed 10 | 1 3 . . . 6 Worker 2 | . . . . . 2 Tunneler 3 | 2 . . . . 1 Hauler 4 | . 2 . . . 2 Recycler 7 | . . . . . 7 Operator 1 | . . . . . 1 Watcher 1 | . . . . . 1 Swarmer 17 | . 3 3 . . 11 Grunt 24 | . 6 4 . 2 12 Duelist 1 | . . . . . 1 Sentry 3 | . . . . . 3 Best Kill Streak 11 | 2 3 3 . 2 11 Combat Bots Only 5 | . 3 3 . 2 5 Max Kills in Single Turn 1 | 1 1 1 . 1 1 Gunslinging . | . . . . . . Exploded . | . . . . . . Melee 1 | . . . . 1 1 Uniques/NPCs Destroyed . | . . . . . . Combat | -11 -10 -10 -10 -9 -8 -------- Run | Scr Mat Min Exi Min Mat Damage Taken 3534 | . 636 278 . 12 2608 Core 753 | . 141 40 . 12 560 Absorbed by Shields . | . . . . . . Redirected to Shielding 50 | . . . . . 50 Core Remaining (%) 61 | 100 . . . 22 . Volleys Fired 78 | 2 59 17 . . . Largest 2 | 1 2 2 . . . Hottest 60 | 40 60 40 . . . Shots Fired 124 | 2 88 34 . . . Gun 124 | 2 88 34 . . . Cannon . | . . . . . . Launcher . | . . . . . . Special . | . . . . . . Kinetic 68 | . 34 34 . . . Thermal 56 | 2 54 . . . . Explosive . | . . . . . . Electromagnetic . | . . . . . . Robot Hit Streak 19 | 2 19 9 . . . Robot Miss Streak 4 | . 3 4 . . . Penetration Max . | . . . . . . Secondary Targets 3 | . 1 2 . . . Max Gunslinging Chain 1 | . 1 1 . . . Shots Hit Robots 186 | 2 64 21 . 3 96 Core Hits 69 | 2 23 13 . . 31 Critical Kills . | . . . . . . Critical Parts Destroyed 6 | . 1 . . . 5 Critical Strikes 9 | . 1 . . . 8 Destroy 1 | . 1 . . . . Smash 5 | . . . . . 5 Sever 3 | . . . . . 3 Melee Attacks 170 | . . . 14 3 153 Impact 57 | . . . 14 3 40 Slashing 113 | . . . . . 113 Piercing . | . . . . . . Sneak Attacks 20 | . . . . 2 18 Combat Hostiles 2 | . . . . 1 1 Follow-up Attacks 16 | . . . . . 16 Damage Inflicted 4601 | 22 668 240 . 205 3466 Guns 929 | 22 668 239 . . . Cannons . | . . . . . . Explosions . | . . . . . . Melee 3671 | . . . . 205 3466 Ramming 1 | . . 1 . . . Kinetic 462 | . 223 239 . . . Thermal 467 | 22 445 . . . . Explosive . | . . . . . . Electromagnetic . | . . . . . . Impact 1791 | . . . . 205 1586 Slashing 1880 | . . . . . 1880 Piercing . | . . . . . . Highest Corruption . | . . . . . . Average Corruption . | . . . . . . Corruption Purged . | . . . . . . Corruption Blocked . | . . . . . . Overload Shots . | . . . . . . Overflow Damage 897 | . . . . 85 812 Projectiles . | . . . . . . Explosions . | . . . . . . Melee 897 | . . . . 85 812 Knockbacks 12 | . . . . . 12 Impact 9 | . . . . . 9 Kinetic . | . . . . . . Secondary 3 | . . . . . 3 Self-Inflicted Damage . | . . . . . . Shots . | . . . . . . Rammed 2 | . . 2 . . . Targets Rammed 3 | . . 2 . . 1 Kicked 1 | . . . . . 1 Crushed . | . . . . . . Highest Temperature 163 | . 163 34 . . 10 Average Temperature 54 | . 68 10 . . 4 Received Heat Transfer 1356 | . 324 126 . 6 900 Siege Activations . | . . . . . . Robots Corrupted . | . . . . . . Combat Hostiles . | . . . . . . Parts Fried 13 | . . . . 1 12 Impact Corruptions 28 | . . . . 3 25 Robots Melted . | . . . . . . Combat Hostiles . | . . . . . . Parts Melted 2 | . 1 . . . 1 Heat Transferred 1050 | 50 1000 . . . . Parts Sabotaged . | . . . . . . Parts Stolen . | . . . . . . Parts Stripped . | . . . . . . Power Chain Reactions . | . . . . . . Missiles Intercepted . | . . . . . . Alert | -11 -10 -10 -10 -9 -8 ------- Run | Scr Mat Min Exi Min Mat Peak Influence 560 | 10 203 207 . 50 560 Initial 22 | . 6 22 . . 19 Average 207 | 2 103 58 . 16 358 Maximum Alert Level 2 | . 1 1 . . 2 Low Security (%) 53 | 100 74 95 . 100 15 Level 1 21 | . 25 4 . . 33 Level 2 25 | . . . . . 51 Level 3 . | . . . . . . Level 4 . | . . . . . . Level 5 . | . . . . . . High Security . | . . . . . . Max Security . | . . . . . . Squads Dispatched 5 | . 1 1 . . 3 Investigation 2 | . . 1 . . 1 Extermination . | . . . . . . Reinforcement 3 | . 1 . . . 2 Assault . | . . . . . . Garrison . | . . . . . . Intercept . | . . . . . . Searches Triggered . | . . . . . . Construction Impeded . | . . . . . . Haulers Reinforced . | . . . . . . Active Scanning Responses . | . . . . . . Cargo Convoy Interrupts . | . . . . . . Stealth | -11 -10 -10 -10 -9 -8 --------- Run | Scr Mat Min Exi Min Mat Distress Signals 1 | . . . . . 1 Communications Jammed . | . . . . . . Distress Signals . | . . . . . . Times Spotted 77 | . 13 7 . 1 56 Peak Tracking Total 5 | . 5 3 . 1 5 Tactical Retreats 13 | . 1 . . . 12 Traps | -11 -10 -10 -10 -9 -8 ------- Run | Scr Mat Min Exi Min Mat Traps Triggered . | . . . . . . Indirectly . | . . . . . . Trap Hack Attempts . | . . . . . . Triggered . | . . . . . . Disarmed . | . . . . . . Reprogrammed . | . . . . . . Reused . | . . . . . . Traps Extracted . | . . . . . . Installed 3 | . . . . 3 . Triggered . | . . . . . . Machines | -11 -10 -10 -10 -9 -8 ---------- Run | Scr Mat Min Exi Min Mat Machines Disabled . | . . . . . . Max in Single Turn . | . . . . . . Machines Sabotaged . | . . . . . . Garrisons Compromised . | . . . . . . Overloaded Fab Kills . | . . . . . . Hacking | -11 -10 -10 -10 -9 -8 --------- Run | Scr Mat Min Exi Min Mat Machines Accessed 3 | . . 1 . . 2 Terminals 1 | . . . . . 1 Fabricators . | . . . . . . Repair Stations . | . . . . . . Recycling Units 1 | . . . . . 1 Scanalyzers . | . . . . . . Garrison Access . | . . . . . . Total Hacks 7 | . . 1 . . 6 Successful 4 | . . 1 . . 3 Failed 3 | . . . . . 3 Catastrophic . | . . . . . . Database Lockouts . | . . . . . . Manual . | . . . . . . Terminals 3 | . . . . . 3 Fabricators . | . . . . . . Repair Stations . | . . . . . . Recycling Units 3 | . . . . . 3 Scanalyzers . | . . . . . . Garrison Access . | . . . . . . Terminal Hacks 2 | . . 1 . . 1 Open Door 1 | . . 1 . . . Branch Access Points 1 | . . . . . 1 Fabricator Hacks . | . . . . . . Repair Station Hacks . | . . . . . . Recycling Unit Hacks 2 | . . . . . 2 Retrieve Components 2 | . . . . . 2 Scanalyzer . | . . . . . . Garrison Access Hacks . | . . . . . . Unauthorized Hacks . | . . . . . . Terminals . | . . . . . . Fabricators . | . . . . . . Repair Stations . | . . . . . . Recycling Units . | . . . . . . Scanalyzers . | . . . . . . Garrison Access . | . . . . . . Data Cores Recovered . | . . . . . . Used . | . . . . . . Hacking Detections . | . . . . . . Full Trace Events . | . . . . . . Feedback Events . | . . . . . . Feedback Blocked . | . . . . . . Robot Schematics Acquired . | . . . . . . Robots Built . | . . . . . . Authchips . | . . . . . . Time . | . . . . . . Total Robot Build Rating . | . . . . . . Part Schematics Acquired . | . . . . . . Parts Built . | . . . . . . Authchips . | . . . . . . Time . | . . . . . . Total Part Build Rating . | . . . . . . Parts Repaired . | . . . . . . Time . | . . . . . . Parts Recycled . | . . . . . . Recycled Matter . | . . . . . . Retrieved Matter . | . . . . . . Retrieved Components 15 | . . . . . 15 Parts Scanalyzed . | . . . . . . Part Schematics Acquired . | . . . . . . Parts Damaged . | . . . . . . Bothacking | -11 -10 -10 -10 -9 -8 ------------ Run | Scr Mat Min Exi Min Mat Used RIF Installer . | . . . . . . Robots Hacked . | . . . . . . Non-combat . | . . . . . . Combat . | . . . . . . Robot Hacks Applied . | . . . . . . Relay Couplers Released . | . . . . . . Fabnet Peak Effective % . | . . . . . . Robots Rewired . | . . . . . . Allies Hacked . | . . . . . . Hacks Repelled . | . . . . . . Allies | -11 -10 -10 -10 -9 -8 -------- Run | Scr Mat Min Exi Min Mat Total Allies 2 | . . . . 2 . Largest Group 2 | . . . . 2 2 Highest-Rated Group 47 | . . . . 47 47 Highest-Rated Ally 31 | . . . . 31 31 Total Orders . | . . . . . . Ally Attacks 6 | . . . . . 6 Total Damage 41 | . . . . . 41 Kills . | . . . . . . Allies Corrupted . | . . . . . . Allies Melted . | . . . . . . Intel | -11 -10 -10 -10 -9 -8 ------- Run | Scr Mat Min Exi Min Mat Robot Analysis Total . | . . . . . . Derelict Logs Recovered 2 | . . 1 . 1 . Drone Launches . | . . . . . . Drone Recoveries . | . . . . . . Exploration | -11 -10 -10 -10 -9 -8 ------------- Run | Scr Mat Min Exi Min Mat Turns Passed 4489 | 117 646 959 373 365 2029 Spaces Moved 1952 | 65 251 420 278 268 670 Core 4 | 4 . . . . . Treads 609 | 61 251 297 . . . Legs 1339 | . . 123 278 268 670 Wheels . | . . . . . . Hover . | . . . . . . Flight . | . . . . . . Fastest Speed 50 | 50 160 120 120 120 120 Average Speed 172 | 153 181 205 120 120 193 Slowest Speed 260 | 160 240 260 120 120 260 Overloaded Moves . | . . . . . . Propulsion Burnouts . | . . . . . . Robots Hopped . | . . . . . . Cave-ins Triggered . | . . . . . . Exploration Rate (%) 50 | 5 36 89 67 58 49 Regions Visited 5 Branch Regions 3 Pre-discovered Areas 1 | . . . . 1 . Known Exits Taken 1 | . . . . 1 . Unknown Exits Taken 4 | 1 1 1 1 . . Scrap Searched 2 | . . 1 . 1 . Spaces Dug . | . . . . . . Terrain Destroyed . | . . . . . . Melee . | . . . . . . Projectile . | . . . . . . AOE . | . . . . . . Terrain Rammed . | . . . . . . Walls Destroyed . | . . . . . . Machines Disabled . | . . . . . . Actions | -11 -10 -10 -10 -9 -8 --------- Run | Scr Mat Min Exi Min Mat Total 2684 | 78 364 491 293 306 1152 Wait 364 | . 14 22 . 33 295 Move 1947 | 64 250 419 277 267 670 Hop . | . . . . . . Pick Up 41 | 3 20 6 1 . 11 Fast Attach 25 | 7 3 3 . . 12 Attach 14 | . 3 3 . . 8 Detach 1 | . . 1 . . . Swap 16 | . 4 5 . . 7 Drop 45 | 2 11 13 1 . 18 Fire 78 | 2 59 17 . . . Melee 147 | . . . 14 3 130 Ram . | . . . . . . Kick 1 | . . . . . 1 Crush 2 | . . 2 . . . Escape Stasis . | . . . . . . Rewire . | . . . . . . Trap 3 | . . . . 3 . Miscellaneous . | . . . . . . Route ------- -11/Scrapyard -10/Materials -10/Mines (discovered 2 exits: [*Mat] / [*Exi]) -10/Exiles -9/Mines -8/Materials (discovered 1 exit: [*Fac]) History --------- Turn | Location | Event 21 | -11/Scrapyard | Discovered new exit (range 14) 118 | -11/Scrapyard | Entered Materials 304 | -10/Materials | Build established: Mutant 563 | -10/Materials | Core integrity fell below 50% 708 | -10/Materials | Discovered new exit (range 6) 764 | -10/Materials | Entered Mines 781 | -10/Mines | Met a Derelict bent on vengeance 1061 | -10/Mines | Build established: Scavenger-Mutant 1168 | -10/Mines | Discovered new exit (range 15) 1545 | -10/Mines | Met a Derelict shopkeep closing up shop 1552 | -10/Mines | Learned Materials trap positions 1719 | -10/Mines | Deemed a non-threat by the Exiles lab entrance 1719 | -10/Mines | Discovered new exit (range 5) 1723 | -10/Mines | Entered Exiles 1752 | -10/Exiles | Met 8R-AWN 1773 | -10/Exiles | Met EX-HEX 1805 | -10/Exiles | Met EX-BIN 1970 | -10/Exiles | Met EX-DEC 2079 | -10/Exiles | Discovered new exit (range 12) 2096 | -10/Exiles | Entered Mines 2124 | -9/Mines | Found a hidden stash of uninstalled traps 2177 | -9/Mines | Identified exit to Materials 2304 | -9/Mines | Learned location of Storage (-9) 2461 | -9/Mines | Entered Materials 2461 | -8/Materials | Accompanied by 2 allies 2461 | -8/Materials | Evolved 4 slots: Utility x4 2462 | -8/Materials | Loaded intel: 24 trap records 2470 | -8/Materials | Led the pair of lost Derelicts to an unsafe place 3172 | -8/Materials | Build established: Mutant 3500 | -8/Materials | Core integrity fell below 50% 3501 | -8/Materials | Build established: Scavenger-Mutant 3686 | -8/Materials | Discovered new exit (range 16) 4035 | -8/Materials | Build established: Mutant 4436 | -8/Materials | Core integrity fell below 20% 4490 | -8/Materials | Destroyed by G-47 Trooper with Particle Gun Last Messages --------------- 04294_ Destroyed Flight Unit. 04312_ Mining Claw follow-up attack on S-10 Pest. 04313_ R-06 Scavenger collects Imp. Heat Sink. 04330_ S-10 Pest destroyed. 04351_ Hrd. Light Armor Plating destroyed. 04353_ Destroyed Flight Unit. 04358_ S-10 Pest destroyed. 04367_ Mining Claw follow-up attack on S-10 Pest. 04367_ S-10 Pest destroyed. 04408_ R-06 Scavenger collects Lgt. Ion Engine. 04427_ Mining Claw follow-up attack on G-47 Trooper. 04431_ Hrd. Light Armor Plating destroyed. 04439_ Aluminum Leg destroyed. 04440_ Kicked G-47 Trooper out of the way. 04448_ Critical hit (Burn: +37). 04469_ Lgt. Angular Momentum Engine destroyed. 04470_ Titanium Leg destroyed. 04470_ Critical hit (Burn: +37). 04476_ Mining Claw destroyed. 04479_ Aluminum Leg destroyed. Map ----- +----------------------------------------------------+ | | | | | | | | | | | | | | | | | | | | | | | | | | | | | ?????????????????????????######## | | ??????????###########????# = | | ??????????# ????# | | ??????????# ##### | | # ? ??????# # + | | # ""?????# # ### ! | | # """????# # #?# [ | | # """?#### # #?# [ | | ?? # # # #?# ]=* | | ????"" # # # #########+ | | ??????^; # # ^ % | | ???????#@ # + =% | | ???????# # # ^ | | ???????# # / ^ | | ???????# # # ^ | | ???????# # # ^ [ | | ???????# # # ^ *[ | | ??????##Yg############ ![ ] | | ??????# g ![ | | ??????# ########### | | ??????# #?????????# | | ??????# #?????????####+### | | ??????##+###????????????????# | | ????????????????????????????# | | ????????????????????????????# | | ????????????????????????????# | | ?????????????????????????????? | | ????????????????????????????????? | | ????????????????????????????????? | | ????????????????????????????????? | | ????????????????????????????????? | | ????????????????????????????????? | | ????????????????????????????????? | | ????????????????????????????????? | | ????????????????????????????????? | | ????????????????????????????????? | +----------------------------------------------------+ Best States ------------- Heat Dissipation 45 Energy Generation 18 Energy Capacity 250 Matter Stores 300 Matter Capacity 300 Sight Range 16 Terrain Scan Density 10 Additional Mass Support 6 Armor Coverage 300 Power Shielding 33 Utility Shielding 66 Evasion (%) 55 Recoil Reduction 2 Item Schematics ----------------- None Robot Schematics ------------------ None Fabricated ------------ Nothing Alien Tech Used ----------------- None Achievements -------------- None Challenges ------------ None Game ------ Seed SpreadComponentPick Manual? 0 Play Time 00:20:00 Cumulative 285.7 hours Start 2022.05.26 @ 12:28:47 End 2022.05.26 @ 12:56:13 Sessions 3 Manual Loads 0 Difficulty Rogue Special Mode None Game No. 529 Rogue 374 Adventurer 148 Explorer 7 Win Type - Total 10 Types 8/0/1/1/0/0/0/0/0 Lore% 72 Gallery% 84 Achievement% 66 Wizard Run 0 Options --------- ASCII 0 Keyboard 0 Movement Numpad Keybinds 0 Fullscreen 1 Font 18/SmallcapsGlow Map View 76x50 Tactical HUD 1 Map Filters NONE Filters NONE Steam 1 RUN: 7300e9df-8d6e-47c9-b4c5-6d499a02f9ab